bitfinex-derivatives/quotes_ETHF0:USTF0_20220106
["timestamp","ask_amount","ask_price","bid_price","bid_amount"]
[1641428338950,2.00479,3532.9,3532.7,2.37127334]
[1641428339153,0.229991,3532.8,3532.7,2.37127334]
[1641428339353,2.00479,3532.9,3532.7,2.37127334]
[1641428339549,2.137184,3532.9,3532.7,2.37127334]
[1641428340373,14.227184,3532.9,3532.6,0.83622883]
[1641428341152,0.229991,3532.8,3532.6,0.83622883]
[1641428341353,0.132394,3532.7,3532.6,0.83622883]
[1641428341956,0.362385,3532.7,3532.6,0.83622883]
[1641428342163,0.132394,3532.7,3532.6,0.83622883]
[1641428342354,1.54743361,3532.7,3532.6,0.83622883]
[1641428342554,1.54743361,3532.7,3532.3,2.39871929]
[1641428342755,1.5,3532.5,3532.3,2.39871929]
[1641428342955,12.09,3532.3,3532.0,4.76999263]
[1641428343355,0.132394,3532.2,3532.0,4.76999263]
[1641428343656,0.229991,3532.1,3532.0,4.76999263]
[1641428343855,1.64530298,3532.1,3532.0,4.76999263]
[1641428344056,1.64530298,3532.1,3532.0,2.39871929]
[1641428344657,0.229991,3532.1,3531.8,3.19647001]
[1641428344956,2.00479,3531.9,3531.7,0.79969892]
[1641428345757,0.362385,3531.8,3531.7,0.79969892]
[1641428346157,0.132394,3531.8,3531.7,0.79969892]
[1641428346358,0.132394,3531.8,3531.4,3.62256484]
[1641428347359,0.132394,3531.8,3531.4,2.39871929]
[1641428347562,1.632394,3531.8,3531.4,2.39871929]
[1641428347759,0.132394,3531.8,3531.2,2.39871929]
[1641428348359,1.5,3531.4,3531.2,2.39871929]
[1641428348560,0.362385,3531.3,3531.2,2.39871929]
[1641428348759,12.09,3531.0,3530.4,4.34534903]
[1641428348967,17.59958,3530.5,3530.4,4.34534903]
[1641428349165,17.59958,3530.5,3529.9,3.45796663]
[1641428349363,1.5,3530.0,3529.6,4.79924944]
[1641428349568,2.91638846,3529.7,3529.6,4.79924944]
[1641428349766,15.23637946,3529.7,3529.6,4.79924944]
[1641428349966,15.23697755,3529.7,3529.1,5.40828562]
[1641428350165,1.5,3529.5,3529.1,5.40828562]
[1641428350567,1.5,3529.2,3529.1,4.29252862]
[1641428350765,1.729991,3529.2,3529.1,1.61263563]
[1641428351071,17.829571,3529.2,3528.6,6.00920624]
[1641428351270,13.59,3528.7,3528.6,5.47650624]
[1641428351470,13.59,3528.7,3528.6,5.43830624]
[1641428351767,13.819991,3528.7,3528.6,5.43830624]
[1641428352070,18.354302,3528.7,3526.0,0.75279]
[1641428352269,1.5,3528.0,3526.0,0.75279]
[1641428352471,1.5,3527.4,3526.0,2.04461146]
[1641428352669,13.59,3528.4,3526.3,1.5]
[1641428353068,2.00479,3526.4,3526.0,1.29182146]
[1641428353269,2.00479,3526.4,3526.3,1.5]
[1641428353469,2.00479,3526.8,3526.3,1.5]
[1641428353671,0.92519207,3527.3,3526.6,1.5]
[1641428353873,1.23358943,3527.6,3527.2,1.5]
[1641428354072,1.23358943,3527.6,3526.9,1.5]
[1641428354272,1.23358943,3527.6,3526.2,4.0]
[1641428354470,1.23358943,3527.6,3527.2,1.5]
[1641428354672,1.23358943,3527.6,3527.5,1.5]
[1641428354874,1.23358943,3527.6,3527.5,1.632394]
[1641428355071,1.23358943,3527.6,3527.5,0.132394]
[1641428355371,2.00479,3527.8,3527.5,1.43990337]
[1641428356370,2.00479,3527.8,3527.7,1.5]
[1641428356577,33.317,3530.2,3527.7,1.632394]
[1641428356774,43.3901,3530.3,3528.5,1.5]
[1641428356976,2.00479,3529.7,3528.8,2.00479]
[1641428357174,2.00479,3529.7,3528.9,0.132394]
[1641428357372,2.00479,3529.7,3529.0,0.97789459]
[1641428357773,12.09,3529.6,3529.0,0.97789459]
[1641428358072,13.59,3529.6,3527.1,1.12375908]
[1641428358475,12.09,3529.6,3527.2,1.01020504]
[1641428359072,2.00479,3528.7,3527.9,2.00479]
[1641428359273,2.00479,3528.7,3528.0,0.132394]
[1641428359473,2.00479,3528.7,3528.0,0.90532341]
[1641428359873,12.09,3528.6,3528.0,0.90532341]
[1641428360274,2.00479,3528.7,3528.0,0.90532341]
[1641428360475,2.00479,3529.7,3528.0,0.90532341]
[1641428360675,13.59,3529.6,3528.0,0.90532341]
[1641428361074,12.09,3528.9,3528.0,0.90532341]
[1641428361675,1.5,3528.7,3526.7,33.3745]
[1641428361874,12.09,3528.9,3523.2,3.25711062]
[1641428362074,12.09,3528.9,3526.9,1.5]
[1641428362277,12.09,3528.9,3526.3,2.8488134]
[1641428362676,12.09,3528.9,3526.5,1.3366352]
[1641428362877,12.09,3528.9,3526.5,1.9266352]
[1641428363078,2.00479,3527.5,3526.7,2.00479]
[1641428363279,2.00479,3527.5,3526.8,0.132394]
[1641428363478,2.00479,3527.9,3526.8,0.132394]
[1641428363479,12.09,3527.8,3526.8,0.132394]
[1641428363677,12.09,3527.8,3527.3,1.5]
[1641428363879,2.00479,3527.9,3527.4,0.132394]
[1641428364079,2.00479,3527.9,3526.8,2.01370168]
[1641428364279,2.00479,3527.9,3527.7,1.5]
[1641428364481,1.5,3529.2,3527.8,0.132394]
[1641428364683,1.5,3529.2,3526.9,1.5]
[1641428364882,1.5,3529.2,3526.9,2.09]
[1641428365080,1.5,3529.2,3528.2,2.00479]
[1641428365081,2.00479,3529.1,3528.2,2.00479]
[1641428365481,12.09,3529.0,3528.3,0.132394]
[1641428365684,30.2707,3530.2,3528.4,1.28044224]
[1641428366084,1.5,3530.6,3528.4,1.28044224]
[1641428366584,12.09,3530.0,3528.4,1.28044224]
[1641428367088,12.09,3529.4,3528.7,2.00479]
[1641428367889,1.41639248,3529.1,3528.7,2.00479]
[1641428368088,12.09,3529.4,3528.7,0.08330372]
[1641428368287,1.4163664,3529.2,3528.7,0.08330372]
[1641428368489,12.09,3529.4,3528.7,0.08330372]
[1641428369092,2.00479,3529.5,3528.7,0.132394]
[1641428369294,2.00479,3529.5,3528.7,1.632394]
[1641428369593,2.00479,3529.5,3528.7,0.132394]
[1641428370398,12.09,3529.4,3528.7,0.132394]
[1641428371196,2.00479,3529.5,3529.0,2.00479]
[1641428371398,2.00479,3529.5,3529.1,1.26942239]
[1641428371597,12.09,3529.4,3529.1,1.26942239]
[1641428371796,0.229991,3529.3,3529.1,1.26942239]
[1641428372401,1.729991,3529.3,3527.5,30.9108]
[1641428372600,1.5,3529.1,3527.5,30.9108]
[1641428372898,12.09,3529.4,3525.6,12.5239]
[1641428373098,2.00479,3528.5,3527.7,2.00479]
[1641428373297,14.09479,3528.5,3527.8,0.132394]
[1641428373698,14.09479,3528.5,3527.9,1.5]
[1641428373897,14.09479,3528.5,3527.7,2.00479]
[1641428374498,14.09479,3528.5,3527.8,0.132394]
[1641428377899,2.00479,3528.5,3528.3,1.5]
[1641428378100,2.00479,3528.5,3528.4,1.30849491]
[1641428378299,2.00479,3528.5,3528.4,1.17610091]
[1641428378699,31.8775,3529.4,3528.4,1.30849491]
[1641428378899,2.00479,3529.5,3528.4,2.80849491]
[1641428379100,12.09,3529.4,3528.4,2.80849491]
[1641428379300,2.00479,3528.9,3528.4,2.80849491]
[1641428379600,14.09479,3528.9,3528.4,1.30849491]
[1641428380202,14.09479,3528.9,3528.4,1.17610091]
[1641428380405,15.59479,3528.9,3528.1,2.00479]
[1641428380602,14.09479,3528.9,3528.1,2.00479]
[1641428381204,16.09958,3528.9,3527.7,2.00479]
[1641428382403,16.09958,3528.9,3528.0,1.5]
[1641428382604,16.09958,3528.9,3527.7,2.00479]
[1641428382605,4.00958,3528.9,3528.4,1.5]
[1641428383304,4.00958,3528.9,3527.7,2.00479]
[1641428383305,2.00479,3528.9,3528.5,0.94064809]
[1641428383507,2.00479,3528.9,3528.3,2.00479]
[1641428383805,12.09,3528.8,3528.3,2.00479]
[1641428384805,12.09,3528.8,3528.1,0.92707047]
[1641428385006,12.09,3528.8,3527.7,2.00479]
[1641428385206,12.09,3528.3,3527.7,2.00479]
[1641428386007,1.41687814,3527.9,3527.7,2.00479]
[1641428386205,0.229991,3527.8,3527.7,2.00479]
[1641428386405,0.229991,3527.8,3527.3,2.00479]
[1641428387007,0.229991,3527.8,3526.5,31.985]
[1641428387208,2.00479,3527.2,3526.3,2.00479]
[1641428387407,12.09,3527.1,3526.3,2.00479]
[1641428388409,0.89287895,3527.0,3526.8,1.54634729]
[1641428388610,1.12286995,3527.0,3526.8,1.54634729]
[1641428390112,0.89287895,3526.9,3526.7,1.54634729]
[1641428390311,0.229991,3526.8,3526.7,1.54634729]
[1641428390710,12.319991,3526.8,3526.4,2.06429301]
[1641428390911,13.819991,3526.8,3526.4,2.06429301]
[1641428391113,12.319991,3526.8,3526.4,2.06429301]
[1641428391311,2.00479,3526.5,3526.4,2.06429301]
[1641428391515,1.83434283,3526.8,3526.7,0.20866439]
[1641428391712,14.15433383,3526.8,3526.7,0.20866439]
[1641428393116,12.9207444,3526.8,3526.7,0.20866439]
[1641428393315,14.9255344,3526.8,3526.3,0.20866439]
[1641428394514,1.23383772,3526.6,3526.4,0.20866439]
[1641428394714,0.229991,3526.5,3526.4,0.20866439]
[1641428395720,0.229991,3526.5,3525.8,1.85562862]
[1641428395918,0.229991,3526.5,3525.7,1.12966728]
[1641428396117,0.229991,3526.5,3525.8,0.132394]
[1641428396717,0.229991,3526.5,3525.7,1.12966728]
[1641428396919,0.229991,3526.5,3525.9,0.96150494]
[1641428397117,0.229991,3526.5,3525.8,0.96150494]
[1641428397318,0.229991,3526.5,3525.7,1.12966728]
[1641428397519,0.229991,3526.5,3525.9,0.96149195]
[1641428397719,0.229991,3526.5,3525.8,0.96149195]
[1641428397921,1.41754897,3526.3,3525.7,1.12966728]
[1641428398119,14.09479,3526.8,3525.7,1.12966728]
[1641428398120,14.09479,3526.8,3525.9,0.96150908]
[1641428398322,1.41754897,3526.3,3525.8,0.96150908]
[1641428398520,14.09479,3526.8,3525.9,1.5]
[1641428398720,14.09479,3526.8,3526.5,1.5]
[1641428399122,2.00479,3526.8,3526.6,0.96150908]
[1641428399321,0.91931771,3527.3,3526.6,0.96150908]
[1641428399723,0.91931771,3527.3,3526.5,1.89022414]
[1641428400022,0.91931771,3527.3,3526.5,0.92871506]
[1641428400223,13.50722553,3527.1,3526.6,0.96136799]
[1641428400423,12.09,3527.1,3526.5,0.92871506]
[1641428401426,2.00479,3527.5,3526.6,0.132394]
[1641428401722,2.00479,3527.5,3526.7,1.5]
[1641428401924,2.00479,3527.5,3526.8,0.132394]
[1641428402127,3.42185687,3527.5,3526.8,1.09372849]
[1641428402526,3.42185687,3527.5,3526.9,0.96133449]
[1641428402925,12.09,3527.4,3526.9,0.96133449]
[1641428403124,12.09,3527.4,3526.8,0.132394]
[1641428403327,12.09,3527.4,3527.1,2.00479]
[1641428403524,0.229991,3527.3,3525.7,1.59164]
[1641428403929,1.41726771,3527.0,3525.9,0.96147566]
[1641428404127,12.09,3527.2,3525.9,0.96147566]
[1641428404328,12.09,3527.2,3525.8,0.96147566]
[1641428404625,12.09,3527.2,3526.0,0.96147566]
[1641428404825,12.09,3527.2,3525.9,0.96147566]
[1641428405025,1.41747664,3526.4,3525.7,1.59164]
[1641428405229,12.09,3527.2,3526.0,0.96154888]
[1641428405426,12.09,3526.5,3525.8,0.96154888]
[1641428405626,12.09,3526.5,3525.8,0.95504272]
[1641428405829,12.09,3526.5,3525.9,0.96153395]
[1641428406426,12.09,3526.5,3525.8,0.95504272]
[1641428406627,1.41747664,3526.4,3526.0,0.96154128]
[1641428406827,1.41747664,3526.4,3525.9,0.96154128]
[1641428407225,1.41747664,3526.4,3525.7,2.00479]
[1641428407428,1.41747664,3526.4,3526.0,0.96156829]
[1641428407626,1.41747664,3526.4,3525.8,0.96156829]
[1641428407826,1.41747664,3526.4,3525.7,2.00479]
[1641428408026,1.41747664,3526.4,3525.9,0.96156611]
[1641428408329,1.41758313,3526.2,3525.8,0.96156611]
[1641428408528,1.41784844,3526.0,3525.3,0.95504272]
[1641428409326,12.09,3526.3,3525.3,0.95504272]
[1641428409526,2.00479,3525.7,3525.4,0.96177807]
[1641428409726,0.229991,3525.6,3525.2,1.15999594]
[1641428410126,2.00479,3525.7,3525.3,0.96178368]
[1641428410326,14.09479,3525.7,3525.3,0.96178368]
[1641428410726,14.09479,3525.7,3524.9,2.00479]
[1641428410928,1.41783236,3525.6,3524.9,2.00479]
[1641428411434,1.41783236,3525.6,3525.0,0.132394]
[1641428411630,1.41783236,3525.6,3524.9,2.00479]
[1641428412229,1.41783236,3525.6,3524.5,0.95504272]
[1641428412430,1.41828682,3524.6,3524.5,0.95504272]
[1641428412630,3.14827782,3524.6,3524.5,0.95504272]
[1641428412929,1.09401221,3524.5,3524.3,0.95540803]
[1641428413131,1.5,3524.4,3524.3,0.95540803]
[1641428413330,1.5,3524.4,3523.7,2.42597534]
[1641428413331,1.729991,3524.4,3524.0,1.27387737]
[1641428413530,16.09958,3524.1,3524.0,1.27387737]
[1641428413833,17.59958,3524.1,3524.0,7.737e-05]
[1641428414031,17.59958,3524.1,3523.7,1.59234672]
[1641428414232,1.5,3523.8,3523.5,0.83362862]
[1641428414431,1.5,3523.8,3523.2,2.31953578]
[1641428414432,2.91904155,3523.6,3523.2,2.31953578]
[1641428414634,1.5,3523.3,3523.0,3.09271437]
[1641428414832,1.5,3523.1,3523.0,3.09271437]
[1641428415231,1.5,3523.1,3523.0,1.437e-05]
[1641428415232,15.23930244,3523.1,3523.0,1.437e-05]
[1641428415531,21.01046517,3523.1,3521.4,2.38963795]
[1641428415731,1.41970235,3521.5,3521.4,2.38963795]
[1641428416132,0.229991,3521.5,3521.4,2.38963795]
[1641428416734,1.64975785,3521.5,3521.4,2.38963795]
[1641428417235,12.09,3521.4,3520.9,3.86589297]
[1641428417534,17.51949603,3521.0,3520.4,3.86589297]
[1641428418033,16.09958,3521.0,3520.4,3.86589297]
[1641428418235,1.41991603,3520.5,3520.4,3.86589297]
[1641428419037,15.00991603,3520.5,3520.4,3.86589297]
[1641428419237,15.23990703,3520.5,3520.4,3.86589297]
[1641428419436,21.78957003,3520.5,3520.4,3.86589297]
[1641428419636,21.78957003,3520.5,3519.8,0.10029371]
[1641428419835,1.5,3520.0,3519.8,0.10029371]
[1641428420037,0.229991,3519.9,3519.8,0.10029371]
[1641428420436,1.729991,3519.9,3519.8,0.10029371]
[1641428420637,0.229991,3519.9,3519.8,0.10029371]
[1641428421039,15.24044353,3519.9,3519.8,0.10029371]
[1641428421238,13.819991,3519.9,3519.8,0.10029371]
[1641428421440,14.324781,3519.9,3519.8,0.10029371]
[1641428421641,14.324781,3519.9,3519.1,0.10029371]
[1641428421838,15.824781,3519.9,3519.1,0.10029371]
[1641428422039,12.09,3519.7,3519.1,0.10029371]
[1641428422239,1.42045253,3519.2,3519.1,0.10029371]
[1641428423038,2.00479,3519.9,3519.0,5.132394]
[1641428423039,1.42015801,3519.8,3519.0,6.632394]
[1641428423238,0.60151602,3519.8,3519.0,5.132394]
[1641428423438,2.00479,3519.4,3519.0,5.132394]
[1641428423637,1.40405805,3519.8,3519.1,0.82195341]
[1641428424040,1.40405805,3519.8,3519.0,5.0]
[1641428424338,1.42044244,3519.1,3519.0,5.0]
[1641428424538,13.49405805,3519.8,3519.0,5.0]
[1641428424941,12.69151602,3519.8,3519.1,0.132394]
[1641428425340,1.42043639,3519.2,3519.0,6.92617035]
[1641428425538,0.229991,3519.1,3519.0,6.92617035]
[1641428425940,0.229991,3519.1,3519.0,5.0]
[1641428426339,1.42043639,3519.2,3519.0,5.0]
[1641428426943,1.42043639,3519.2,3519.1,0.132394]
[1641428427142,2.64569487,3519.7,3519.1,0.132394]
[1641428427340,2.00479,3519.9,3519.1,0.132394]
[1641428427341,1.22548846,3519.5,3519.1,0.132394]
[1641428427541,1.22548846,3519.5,3519.3,2.00479]
[1641428427841,1.45547946,3519.5,3519.3,2.00479]
[1641428428842,1.65027003,3519.5,3519.3,2.00479]
[1641428429043,1.65027003,3519.5,3519.0,5.0]
[1641428429240,1.42027903,3519.5,3519.0,5.132394]
[1641428429441,13.91741764,3519.8,3519.0,5.132394]
[1641428429642,12.09,3519.4,3519.0,5.132394]
[1641428430443,12.09,3519.4,3519.0,5.0]
[1641428430444,1.42034762,3519.3,3519.0,5.0]
[1641428431047,1.82741764,3519.4,3519.0,5.0]
[1641428431246,1.82741764,3519.4,3519.1,1.46012171]
[1641428431448,1.22548846,3519.4,3519.3,1.5]
[1641428431650,1.83823269,3519.9,3519.3,3.637184]
[1641428431847,6.48964843,3520.5,3519.3,3.637184]
[1641428431848,2.00479,3520.5,3519.6,1.5]
[1641428432048,34.42874547,3522.2,3519.6,1.5]
[1641428432247,4.06233001,3522.2,3520.2,1.41918454]
[1641428432447,1.5,3523.4,3520.4,1.5]
[1641428432648,1.5,3523.0,3520.4,1.5]
[1641428433048,94.86887826,3523.7,3519.9,2.20400407]
[1641428433049,12.09,3523.2,3520.9,1.5]
[1641428433247,0.16050266,3522.9,3520.9,1.5]
[1641428433447,12.09,3523.0,3521.5,2.00479]
[1641428433647,14.09479,3522.3,3521.5,2.00479]
[1641428434048,14.09479,3522.3,3521.2,2.00479]
[1641428434251,14.09479,3522.3,3521.2,3.36197983]
[1641428434447,1.41932151,3522.1,3521.2,3.36197983]
[1641428434848,1.41948873,3521.7,3520.0,1.5]
[1641428435049,1.419658,3521.3,3519.8,32.7764]
[1641428435250,1.419658,3521.3,3519.7,1.41948873]
[1641428435453,1.419658,3521.3,3520.5,1.5]
[1641428435650,12.09,3521.1,3520.6,0.132394]
[1641428437853,13.50972653,3521.1,3520.6,0.132394]
[1641428438753,1.4198878,3520.7,3519.1,61.115]
[1641428438953,1.5,3521.0,3518.4,5.467]
[1641428439156,12.09,3521.1,3518.7,1.5]
[1641428439358,1.41995635,3520.5,3518.5,35.85152172]
[1641428439556,2.00479,3519.5,3518.9,1.41980313]
[1641428439759,9e-05,3519.5,3519.1,1.32310172]
[1641428440556,12.09,3519.8,3519.1,1.32310172]
[1641428440757,12.09,3521.4,3519.7,1.5]
[1641428440956,1.4198253,3520.8,3519.7,1.5]
[1641428441157,12.09,3521.4,3519.7,1.5]
[1641428441557,1.40363593,3522.4,3519.7,1.5]
[1641428441558,13.50969428,3521.2,3520.5,2.00479]
[1641428443161,12.09,3521.2,3520.5,2.00479]
[1641428443361,1.42002692,3520.6,3520.5,2.00479]
[1641428443560,1.65001792,3520.6,3520.5,2.00479]
[1641428444662,0.229991,3520.6,3520.5,2.00479]
[1641428444860,0.229991,3520.6,3520.1,1.44168934]
[1641428445462,0.229991,3520.6,3520.1,2.94168934]
[1641428445663,12.09,3520.4,3520.1,0.132394]
[1641428446063,1.41976483,3521.0,3520.3,1.5]
[1641428446264,2.00479,3521.3,3520.4,0.132394]
[1641428446470,2.00479,3521.3,3520.2,1.5]
[1641428447066,2.00479,3521.3,3520.0,1.19698024]
[1641428447264,1.42010154,3520.1,3519.5,32.3333]
[1641428447465,1.5,3521.0,3519.6,0.132394]
[1641428447664,2.00479,3519.7,3519.0,5.0]
[1641428447866,2.00479,3519.7,3519.2,0.132394]
[1641428448164,12.09,3521.0,3519.2,0.132394]
[1641428448565,1.42002894,3520.3,3519.2,0.132394]
[1641428449165,1.42002894,3520.3,3519.2,1.31576624]
[1641428449668,12.09,3520.1,3519.4,2.00479]
[1641428449866,12.09,3520.1,3519.5,0.132394]
[1641428450667,12.09,3520.1,3519.4,2.00479]
[1641428450868,12.09,3520.1,3519.2,1.18337224]
[1641428450869,1.42032744,3519.6,3519.0,5.0]
[1641428451474,12.09,3519.9,3519.0,5.0]
[1641428451669,12.09,3519.2,3519.0,5.0]
[1641428451868,0.229991,3519.1,3519.0,3.07366678]
[1641428453371,1.65060092,3519.1,3519.0,3.07366678]
[1641428454771,12.09,3518.9,3516.0,1.21918636]
[1641428454971,1.5,3517.3,3516.0,31.1846]
[1641428455168,1.5,3517.3,3515.3,32.224]
[1641428455368,1.5,3517.1,3515.2,32.2437]
[1641428455571,1.4216763,3516.2,3515.6,5.40464276]
[1641428455770,13.5116763,3516.2,3516.1,4.8041269]
[1641428455970,13.7416673,3516.2,3516.1,4.8041269]
[1641428456169,13.74169964,3516.2,3516.1,4.8041269]
[1641428456973,12.319991,3516.2,3516.1,4.8041269]
[1641428457372,13.74174006,3516.2,3516.1,4.8041269]
[1641428457772,2.00479,3516.3,3516.1,4.8041269]
[1641428457773,2.00479,3516.3,3516.1,6.3041269]
[1641428457973,2.00479,3516.7,3515.7,1.5]
[1641428458372,2.00479,3516.7,3515.5,2.00479]
[1641428458572,1.4212641,3517.3,3515.6,1.5]
[1641428458774,1.4212641,3517.3,3515.5,2.00479]
[1641428458974,12.99652297,3518.1,3515.5,2.00479]
[1641428459178,1.42136107,3517.0,3515.5,3.50479]
[1641428459374,1.5,3517.5,3515.5,2.00479]
[1641428459375,1.42157525,3516.5,3515.5,2.00479]
[1641428459576,1.42150856,3516.7,3515.5,2.00479]
[1641428459775,5.32735513,3518.2,3515.5,2.00479]
[1641428459776,1.42139137,3516.9,3516.5,2.00479]
[1641428459975,1.42139137,3516.9,3516.6,0.132394]
[1641428460179,0.229991,3516.8,3516.6,0.132394]
[1641428460379,0.229991,3516.8,3516.5,2.00479]
[1641428460979,1.42158131,3516.6,3516.5,2.00479]
[1641428461179,1.42144592,3516.8,3516.5,2.00479]
[1641428461384,1.42136511,3517.0,3516.5,2.00479]
[1641428461589,1.42136511,3517.0,3516.6,0.132394]
[1641428461782,1.42136511,3517.0,3516.5,2.00479]
[1641428462182,12.09,3517.2,3516.5,2.00479]
[1641428462586,1.4214136,3516.9,3516.6,0.132394]
[1641428462784,12.09,3517.2,3516.6,0.132394]
[1641428463184,1.42137521,3517.0,3516.6,0.132394]
[1641428463382,1.42121158,3517.4,3516.6,0.132394]
[1641428463584,3.42591272,3517.6,3516.6,0.132394]
[1641428463784,3.42591272,3517.6,3517.0,2.00479]
[1641428464583,12.09,3517.5,3517.0,2.00479]
[1641428466588,12.09,3517.5,3517.1,0.132394]
[1641428466985,12.09,3517.5,3517.0,2.00479]
[1641428467686,13.51118735,3517.5,3517.0,2.00479]
[1641428468189,12.09,3517.5,3516.1,1.08757116]
[1641428468389,1.21414328,3517.2,3515.2,1.5]
[1641428468589,1.21414328,3517.2,3515.1,0.59]
[1641428468788,1.21414328,3517.2,3515.3,0.96417865]
[1641428469188,1.21414328,3517.2,3515.4,0.90343269]
[1641428469388,1.42142976,3516.9,3515.4,1.86761134]
[1641428469590,1.42142976,3516.9,3515.6,1.5]
[1641428469792,12.09,3516.8,3516.1,2.00479]
[1641428470189,12.09,3516.8,3516.1,2.137184]
[1641428470388,1.42147421,3516.7,3516.1,2.00479]
[1641428470990,12.09,3516.8,3516.1,2.00479]
[1641428471390,1.42157929,3516.5,3516.2,0.96417695]
[1641428471692,0.229991,3516.4,3516.1,2.00479]
[1641428471891,1.42157929,3516.5,3516.1,2.00479]
[1641428472491,12.09,3516.8,3516.1,2.00479]
[1641428472893,1.42157525,3516.5,3516.1,2.00479]
[1641428473096,1.42157525,3516.5,3516.2,0.96416732]
[1641428473294,12.09,3516.8,3516.1,2.137184]
[1641428473495,2.00479,3516.9,3516.3,0.96416221]
[1641428473694,1.21414328,3517.2,3516.2,1.5]
[1641428473695,12.09,3517.0,3516.8,2.00479]
[1641428473894,1.8152642,3517.7,3516.8,2.00479]
[1641428474094,0.90652297,3517.7,3516.8,2.00479]
[1641428474295,0.90652297,3517.9,3516.8,2.00479]
[1641428474494,0.90652297,3517.9,3516.9,0.84629439]
[1641428474696,12.09,3517.5,3516.9,1.81028293]
[1641428475294,12.09,3517.5,3517.0,0.96398854]
[1641428475495,12.09,3517.5,3516.9,0.71390039]
[1641428475897,12.09,3517.5,3516.9,0.84629439]
[1641428476096,12.09,3517.5,3517.0,0.9639995]
[1641428476396,12.09,3517.5,3516.9,0.84629439]
[1641428476597,12.09,3517.5,3517.0,0.132394]
[1641428477399,2.00479,3518.0,3517.4,1.5]
[1641428477598,2.62939804,3518.7,3517.9,1.5]
[1641428477599,1.20869729,3518.7,3517.9,1.5]
[1641428477798,2.00479,3518.6,3517.9,1.5]
[1641428478000,2.00479,3518.6,3517.8,2.00479]
[1641428478599,12.09,3518.5,3517.8,2.00479]
[1641428478799,12.09,3518.5,3517.9,0.132394]
[1641428479399,12.09,3518.5,3518.0,1.26842218]
[1641428480300,12.09,3518.5,3518.1,0.132394]
[1641428480805,0.90652297,3518.9,3518.1,0.132394]
[1641428481007,0.90652297,3518.9,3518.8,1.5]
[1641428481201,2.12306572,3519.2,3518.8,0.132394]
[1641428481402,0.91436843,3519.2,3518.8,0.132394]
[1641428481601,0.91436843,3519.2,3518.8,1.632394]
[1641428481805,0.91436843,3519.2,3519.1,4.00958]
[1641428482005,0.91436843,3519.2,3519.1,4.141974]
[1641428482502,1.20869729,3519.5,3519.1,4.141974]
[1641428482905,12.69216868,3520.1,3519.1,4.141974]
[1641428483907,12.09,3520.1,3519.5,1.5]
[1641428484106,1.20869729,3520.2,3519.7,1.5]
[1641428484307,1.20869729,3520.4,3519.6,1.5]
[1641428484507,1.5,3520.1,3519.1,3.58272452]
[1641428485107,1.20869729,3520.4,3519.2,0.83033278]
[1641428485308,1.77753606,3520.9,3519.2,2.64623617]
[1641428485507,1.77753606,3520.9,3519.7,0.85232516]
[1641428485708,1.77753606,3520.9,3520.8,2.00479]
[1641428485916,1.77753606,3521.3,3520.8,2.137184]
[1641428486109,1.77753606,3521.3,3520.8,2.88981295]
[1641428487510,0.60200565,3521.4,3520.8,2.88981295]
[1641428487712,2.00479,3521.0,3520.9,0.132394]
[1641428487911,2.234781,3521.0,3520.9,0.132394]
[1641428488612,2.00479,3521.0,3520.9,0.132394]
[1641428489011,3.734781,3521.0,3520.2,2.00479]
[1641428489212,14.324781,3521.0,3518.3,35.1884]
[1641428489511,14.324781,3521.0,3518.4,32.3277]
[1641428489711,2.00479,3520.4,3519.6,2.00479]
[1641428489914,2.00479,3520.4,3519.7,0.132394]
[1641428490111,2.00479,3520.4,3519.7,1.21338529]
[1641428490311,3.50479,3520.4,3519.7,1.21338529]
[1641428490511,12.09,3520.3,3519.7,1.08099129]
[1641428490711,13.51005717,3520.3,3519.3,2.00479]
[1641428491015,13.51005717,3520.3,3517.9,1.42005717]
[1641428491016,2.92041419,3519.4,3518.0,0.83293851]
[1641428491213,1.5,3518.8,3517.4,30.2191]
[1641428491412,1.5,3518.8,3516.9,1.58869131]
[1641428491617,1.5,3518.8,3517.5,0.96380582]
[1641428491811,2.00479,3518.4,3517.5,2.00479]
[1641428492013,12.09,3519.1,3517.6,1.09619982]
[1641428492213,1.5,3520.4,3517.8,0.59]
[1641428492413,1.5,3520.4,3517.9,4.0]
[1641428492414,2.90096924,3519.3,3517.9,4.0]
[1641428492614,1.77753606,3519.1,3517.9,4.96380582]
[1641428492813,3.06498273,3519.6,3517.9,4.96380582]
[1641428492814,3.06498273,3519.6,3518.3,0.85267366]
[1641428493213,3.06498273,3519.6,3518.4,0.96380582]
[1641428493814,3.06498273,3519.6,3519.0,2.00479]
[1641428494016,2.00479,3519.8,3519.1,1.4614735]
[1641428494215,14.09479,3519.8,3519.1,1.4614735]
[1641428494616,3.50479,3519.8,3519.1,1.4614735]
[1641428494815,2.00479,3519.8,3519.1,1.4614735]
[1641428495015,0.60214364,3519.7,3519.1,1.4614735]
[1641428495614,1.5,3519.5,3519.1,1.4614735]
[1641428495815,1.5,3519.2,3518.7,2.00479]
[1641428496218,0.132394,3519.1,3518.7,2.00479]
[1641428496418,1.5,3519.5,3518.7,2.00479]
[1641428497017,1.5,3519.5,3518.8,0.132394]
[1641428497217,12.69214364,3519.7,3518.8,0.132394]
[1641428497417,1.5,3518.9,3518.7,2.00479]
[1641428497820,12.69214364,3519.0,3518.5,0.132394]
[1641428498417,0.60214364,3519.0,3518.5,0.132394]
[1641428498617,2.137184,3519.1,3518.5,0.132394]
[1641428499219,2.00479,3519.1,3518.5,0.132394]
[1641428499418,2.00479,3519.8,3518.6,0.96361654]
[1641428499819,2.00479,3519.8,3519.2,2.00479]
[1641428500020,2.00479,3519.8,3519.3,0.132394]
[1641428501423,2.137184,3519.8,3519.3,0.132394]
[1641428501622,1.5,3519.7,3519.3,0.132394]
[1641428501922,1.5,3519.4,3518.3,2.00479]